[Event "67th Mexican-ch Open 2022"]
[Site "Chihuahua"]
[Date "2022.04.16"]
[Round "7.9"]
[White "Diaz Rosas, Julio Cesar"]
[Black "Morales Garcia, Sergio Joshafatt"]
[Result "0-1"]
[ECO "B48"]
[WhiteElo "2393"]
[BlackElo "2246"]
[Annotator "TA"]
[PlyCount "70"]
[EventDate "2022.04.12"]
[EventType "swiss"]
[EventCountry "MEX"]
[SourceTitle "playchess.com"]
[Source "ChessBase"]
[SourceQuality "1"]
[TimeControl "5400+30"]

{[%evp 11,70,37,46,0,7,0,18,-34,40,39,28,32,40,32,60,4,24,0,0,14,0,-46,-25,-32,-38,-93,-78,-162,-159,-154,-154,-122,-129,-264,-262,-361,-57,-110,-82,-520,-508,-610,-625,-619,-593,-604,-618,-610,-609,-662,-630,-838,-838,-841,-834,-789,-777,-1068,-1010,-6801,-718]} 1. e4 {[%emt 0:00:22]} c5 {[%emt 0:00:09]} 2. Nf3 {[%emt 0:00:06]} e6 {[%emt 0:00:08]} 3. d4 {[%emt 0:00:05]} cxd4 {[%emt 0:00:04]} 4. Nxd4 {[%emt 0:00:05]} Nc6 {[%emt 0:00:05]} 5. Nc3 {[%emt 0:00:06]} Qc7 {[%emt 0:00:03]} 6. Be3 {[%emt 0:00:07]} a6 {[%emt 0:00:06]} 7. g4 {[%emt 0:00:07] is the new trend. B48: Sicilian: Taimanov: 5 Nc3 Qc7 6 Be3 a6 without Be2.} b5 {[%emt 0:04:43]} 8. Nxc6 {[%emt 0:00:15]} Qxc6 {[%emt 0:00:23]} 9. Qd2 {[%emt 0:00:08]} (9. Bg2 $11) 9... Nf6 {[%emt 0:17:00]} (9... b4 $15 10. Ne2 Qxe4) 10. f3 $14 {[%emt 0:00:16]} h6 {[%emt 0:00:35]} 11. O-O-O {[%emt 0:05:40]} Bb7 {[%emt 0:06:17]} 12. Ne2 {[%emt 0:06:28]} Rc8 {[%emt 0:03:44]} 13. Nd4 {[%emt 0:01:09]} (13. Kb1 $14) 13... Qc7 $1 $11 {[%emt 0:01:34]} 14. Kb1 {[%emt 0:10:35]} e5 $1 {[%emt 0:06:19]} 15. Nf5 {[%emt 0:04:37]} d5 {[%emt 0:04:37][%cal Bd7d5,Bd5d4][%mdl 32] [#]} 16. Bh3 $146 {[%emt 0:13:20]} (16. exd5 $11 Bxd5 17. Be2) ({Predecessor:} 16. exd5 Nxd5 17. Bd3 g6 18. Ng3 Bg7 19. Be4 Nxe3 20. Qxe3 Bxe4 21. Qxe4 {1-0 (34) Papp,P (2292)-Khalukov,Y (2192) Voronezh 2012}) 16... d4 $15 {[%emt 0:11:14]} 17. Bf2 {[%emt 0:05:58]} g6 {[%emt 0:07:58]} 18. Bh4 {[%emt 0:14:52]} Qb6 {[%emt 0:10:49]} 19. Rhe1 {[%emt 0:15:32]} gxf5 $19 {[%emt 0:02:34]} 20. exf5 {[%emt 0:00:19] [#] Black must now prevent Bxf6.} Bg7 {[%emt 0:01:38] Hoping for ...0-0.} (20... Bxf3 21. Rxe5+ Be7 22. Rde1 $11) (20... Nd7 21. f4 Bf3 22. Qxd4 Qxd4 23. Rxd4 $17) 21. Rxe5+ {[%emt 0:02:51]} Kf8 {[%emt 0:00:04]} 22. Qb4+ {[%emt 0:06:18]} (22. Ree1 $17 {is the only way for White.}) 22... Kg8 {[%emt 0:00:20]} 23. Rxd4 {[%emt 0:01:08]} Nd5 $2 {[%emt 0:03:42]} 24. Rdxd5 {[%emt 0:03:22]} (24. Rexd5 $15 Bxd5 25. Rxd5) 24... Bxd5 $40 {[%emt 0:00:42][%mdl 128] Black is out for blood. Dancing on a razor blade.} (24... Qg1+ {feels hotter.} 25. Qe1 Qxh2 26. Re2 Qxh3 27. Rd3 h5) 25. f6 $2 {[%emt 0:04:00][%mdl 8192]} (25. Rxd5 $17 {nothing else works.} Qg1+ 26. Qe1 Qxh2 27. Rd2 Qxh3 28. Bg3) 25... Bxf6 {[%emt 0:01:55] Black is clearly winning.} 26. Bxf6 {[%emt 0:01:41]} Qxf6 {[%emt 0:00:56]} 27. Rxd5 {[%emt 0:00:38]} Qxf3 {[%emt 0:01:19]} 28. Qd2 {[%emt 0:02:06]} Qxh3 {[%emt 0:00:59]} 29. Qe2 {[%emt 0:00:13]} Qh4 {[%emt 0:01:50]} 30. a4 {[%emt 0:00:14]} Kg7 {[%emt 0:03:05] Strongly threatening ...Rhe8.} 31. Rh5 {[%emt 0:00:03]} Qf6 {[%emt 0:01:53]} 32. Rf5 {[%emt 0:00:09] [#]} Rhe8 $1 {[%emt 0:01:52]} 33. Qf2 {[%emt 0:00:21]} Qe6 {[%emt 0:02:02] ...Red8 is the strong threat.} 34. Qd4+ {[%emt 0:00:20]} Kg8 {[%emt 0:00:39] ( -> ...Qe1+)} 35. Rf6 {[%emt 0:00:52]} Qe5 {[%emt 0:01:48] Weighted Error Value: White=0.77/Black=0.30} 0-1

[Event "67th Mexican-ch Open 2022"]
[Site "Chihuahua"]
[Date "2022.04.16"]
[Round "7.10"]
[White "Torres Rosas, Luis Carlos"]
[Black "Montes Orozco, Miguel Angel"]
[Result "1-0"]
[ECO "D15"]
[WhiteElo "2356"]
[BlackElo "1914"]
[Annotator "TA"]
[PlyCount "137"]
[EventDate "2022.04.12"]
[EventType "swiss"]
[EventCountry "MEX"]
[SourceTitle "playchess.com"]
[Source "ChessBase"]
[SourceQuality "1"]
[TimeControl "5400+30"]

{[%evp 9,137,-29,-23,-20,-14,-16,27,-10,42,0,14,17,7,-26,-9,-73,10,14,0,-5,7,1,11,11,0,8,8,-139,-135,-149,-137,-131,68,58,49,65,62,72,69,0,16,0,58,68,167,183,174,190,174,189,193,151,144,0,207,193,188,115,113,98,98,98,140,132,143,77,79,75,118,147,108,135,280,264,399,392,534,528,563,587,587,570,643,593,598,575,2993,2600,2142,2179,2041,1456,1495,583,592,241,29964,29970,29961,29971,29977,29977,29978,29978,29980,29981,29981,29980,29980,29981,29981,29982,29982,29983,29984,29985,29985,29986,29986,29987,29987,29988,29988,29988,29988,29988,29988,29987,29987,29988]} 1. d4 {[%emt 0:05:56]} d5 {[%emt 0:00:56]} 2. c4 {[%emt 0:00:54]} c6 {[%emt 0:00:13]} 3. Nf3 {[%emt 0:05:15]} Nf6 {[%emt 0:00:26]} 4. Nc3 {[%emt 0:00:07]} dxc4 {[%emt 0:00:37]} 5. e4 {[%emt 0:00:20]} b5 $1 {[%emt 0:00:34]} 6. Be2 {[%emt 0:00:04] D15: Slav Defence: 4 Nc3 a6 and gambit lines after 4 Nc3 dxc4.} e6 {[%emt 0:03:15]} 7. O-O {[%emt 0:01:47]} Bb4 {[%emt 0:06:40]} 8. Qc2 {[%emt 0:14:19][%mdl 1024] [#] White has compensation. White has an edge.} (8. a4 $5 {[%cal Ra4b5]}) 8... a5 $146 {[%emt 0:03:53]} (8... Bb7 $11) ({Predecessor:} 8... O-O 9. Bg5 Qc7 10. Rad1 Nbd7 11. e5 Nd5 12. Ne4 f5 13. exf6 N7xf6 14. Ne5 Nxe4 15. Qxe4 {1-0 (43) Storme,I (2379)-Marn,J (2360) Chess.com INT 2020}) 9. Bg5 {[%emt 0:12:07]} h6 {[%emt 0:02:17]} 10. Bh4 {[%emt 0:00:17]} Nbd7 {[%emt 0:08:17]} 11. Rad1 {[%emt 0:02:16]} Qb6 {[%emt 0:03:44]} 12. Ne5 {[%emt 0:11:07] [#]} (12. a3 $11 {remains equal.}) 12... Bb7 {[%emt 0:18:45] [#]} (12... Nxe5 $1 $17 13. dxe5 Nd7) 13. Nxf7 $1 $11 {[%emt 0:13:30]} Kxf7 {[%emt 0:13:38][%cal Be8f7,Bf7f6,Bf6e7,Be7d6,Bd6c7][%mdl 32]} 14. e5 {[%emt 0:00:01] [#]} g5 $1 {[%emt 0:00:07]} 15. exf6 {[%emt 0:05:08]} gxh4 {[%emt 0:02:17]} 16. Bh5+ {[%emt 0:00:56]} Kxf6 {[%emt 0:00:44]} (16... Kf8 $2 {is a self mate.} 17. Qg6) 17. Qg6+ {[%emt 0:03:49]} Ke7 {[%emt 0:00:05]} 18. Qg7+ {[%emt 0:00:35]} (18. Ne4 $11 Kd8 19. a3) 18... Kd6 $17 {[%emt 0:00:36] Threatens to win with ...Bxc3.} 19. Ne4+ {[%emt 0:00:44]} Kc7 {[%emt 0:00:35] Hoping for ...Rag8.} 20. Nc5 {[%emt 0:01:50]} Rad8 $2 {[%emt 0:00:29]} (20... Rhd8 $17 21. Qe7 Ba6) 21. Nxd7 $14 {[%emt 0:01:58] 0x0.000e62c4cf4ddp-1022s more active pieces.} Rhg8 {[%emt 0:01:10] [#]} 22. Qxg8 {[%emt 0:10:26] Chess con chili.} Rxg8 {[%emt 0:01:05]} 23. Nxb6 {[%emt 0:00:02]} Kxb6 {[%emt 0:11:49]} 24. Bf7 {[%emt 0:00:01]} (24. a3 $1 $14 Bd6 25. Bf7) 24... Rd8 $11 {[%emt 0:00:16]} 25. Bxe6 {[%emt 0:00:11]} c3 {[%emt 0:00:02]} (25... Be7 $11) 26. a3 $1 $14 {[%emt 0:02:36]} c2 {[%emt 0:00:05]} 27. Rc1 $18 {[%emt 0:00:10]} ({Much less strong is} 27. axb4 $6 cxd1=N 28. bxa5+ (28. Rxd1 axb4 29. f4 Kc7 $14) 28... Kxa5 29. Rxd1 Rd6 $14) 27... Bd2 {[%emt 0:00:07]} 28. Rxc2 {[%emt 0:00:09]} Rxd4 {[%emt 0:00:05]} 29. Rd1 {[%emt 0:02:21]} Bc3 {[%emt 0:00:10][%cal Rd4d1]} 30. Rb1 {[%emt 0:02:12]} Bd2 {[%emt 0:00:09]} 31. Rd1 {[%emt 0:00:06]} (31. Bf5 $16) 31... Bc3 $1 {[%emt 0:00:05][%cal Rd4d1]} 32. Rxd4 {[%emt 0:00:07]} Bxd4 {[%emt 0:00:03][%mdl 4096] Endgame KRB-KB} 33. b4 {[%emt 0:00:11]} ({White should play} 33. b3 $18) 33... c5 {[%emt 0:00:16]} 34. bxc5+ {[%emt 0:00:09]} Bxc5 {[%emt 0:00:04]} 35. Rc3 {[%emt 0:00:11]} Be4 {[%emt 0:01:01]} 36. Rh3 {[%emt 0:02:09]} Bc2 {[%emt 0:00:03]} 37. Rxh4 {[%emt 0:01:06]} ({White should try} 37. Kf1) 37... Bxa3 $16 {[%emt 0:00:03]} 38. Rxh6 {[%emt 0:00:03]} Bc1 {[%emt 0:00:05] This bishop pair is nice.} 39. Rh8 {[%emt 0:00:44]} Bf4 {[%emt 0:01:50] [#] Prevents Rb8+.} 40. g3 $1 {[%emt 0:00:23]} Bc7 {[%emt 0:23:54]} (40... Be5 $16 41. Rc8 Bc7) 41. Rh6 $18 {[%emt 0:01:12]} Kb7 {[%emt 0:00:00]} (41... Ka7 $142 42. Bf7 Bb6) 42. Bd5+ {[%emt 0:00:24]} Kb8 {[%emt 0:00:00]} 43. Ra6 {[%emt 0:00:57][%csl Gd5][%cal Ra6a8]} Bd8 {[%emt 0:01:30]} 44. Ra8+ {[%emt 0:00:31]} Kc7 {[%emt 0:00:00]} 45. Rxa5 {[%emt 0:00:06]} Kd6 {[%emt 0:00:00]} 46. Ra2 {[%emt 0:00:52]} Bh7 {[%emt 0:00:00]} 47. Rd2 {[%emt 0:00:50] Bg8+ is the strong threat.} Ba5 {[%emt 0:00:00]} 48. Bg8+ {[%emt 0:00:08]} Bxd2 {[%emt 0:00:00]} 49. Bxh7 {[%emt 0:00:01] KB-KB} Ke5 {[%emt 0:00:00]} 50. Kg2 {[%emt 0:00:05]} b4 {[%emt 0:00:00]} 51. Kf3 {[%emt 0:00:12]} (51. h4 $142 {Strongly threatening Kf3.} Kd4 52. Kf3) 51... Kf6 {[%emt 0:00:00]} 52. Bc2 {[%emt 0:01:35]} (52. Ke2 $142 Bh6 53. Bc2) 52... Be1 {[%emt 0:00:00]} (52... Ke5 $18 53. h4 Kd4) 53. Ke2 {[%emt 0:00:11] White mates.} Bc3 {[%emt 0:00:00]} 54. f4 {[%emt 0:00:11]} Bd4 {[%emt 0:05:30]} 55. Kf3 {[%emt 0:00:09]} Kg7 {[%emt 0:00:00]} 56. h4 {[%emt 0:00:55][%cal Bh2h4,Bh4h5][%mdl 32]} Kh6 {[%emt 0:00:00]} 57. g4 {[%emt 0:00:07]} Bc3 {[%emt 0:00:00]} 58. Ke4 {[%emt 0:00:23]} Be1 {[%emt 0:00:00]} 59. h5 {[%emt 0:00:28]} Bc3 {[%emt 0:00:00]} 60. Kf5 {[%emt 0:00:21]} Bd4 {[%emt 0:00:00]} 61. Bd1 {[%emt 0:00:07]} Be3 {[%emt 0:00:00]} 62. g5+ {[%emt 0:00:06]} Kg7 {[%emt 0:00:00]} 63. Bb3 {[%emt 0:00:09]} Bd2 {[%emt 0:00:00]} 64. Kg4 {[%emt 0:00:25]} Bc3 {[%emt 0:00:00]} 65. f5 {[%emt 0:00:30]} Bd4 {[%emt 0:00:00]} 66. h6+ {[%emt 0:00:38]} Kh7 {[%emt 0:00:00]} 67. Kh5 {[%emt 0:00:06]} Be5 {[%emt 0:00:00]} 68. g6+ {[%emt 0:00:19][%cal Bg5g6,Bg6g7][%mdl 32]} Kh8 {[%emt 0:00:00]} 69. g7+ {[%emt 0:00:07] What a bad dream for Black.  Weighted Error Value: White=0.25 (precise) /Black=0.38} 1-0

[Event "67th Mexican-ch Open 2022"]
[Site "Chihuahua"]
[Date "2022.04.16"]
[Round "7.11"]
[White "Figueredo Losada, Leonel"]
[Black "Quiroga Jaquez, Angel Ivan"]
[Result "1-0"]
[ECO "C22"]
[WhiteElo "2342"]
[BlackElo "2185"]
[Annotator "TA"]
[PlyCount "49"]
[EventDate "2022.04.12"]
[EventType "swiss"]
[EventCountry "MEX"]
[SourceTitle "playchess.com"]
[Source "ChessBase"]
[SourceQuality "1"]
[TimeControl "5400+30"]

{[%evp 9,49,10,16,16,13,-6,18,25,23,32,22,0,24,4,4,0,18,-19,47,38,120,129,135,93,202,213,436,456,637,631,1100,1100,29975,29973,29973,29960,1862,622,2943,2565,29990,29988]} 1. e4 {[%emt 0:00:30]} e5 {[%emt 0:05:58]} 2. d4 {[%emt 0:00:07]} exd4 {[%emt 0:02:00]} 3. Qxd4 {[%emt 0:00:05]} Qf6 {[%emt 0:01:56]} 4. Qd3 {[%emt 0:04:54]} Bb4+ {[%emt 0:06:01] [#]} 5. Nc3 $146 {[%emt 0:10:54]} ({Predecessor:} 5. c3 Bc5 6. Qg3 d6 7. Nf3 Qg6 8. Qxg6 hxg6 9. Bc4 Nc6 10. O-O Nf6 11. Nbd2 a6 {0-1 (29) Bistric,F (2349)-Nikolic,P (2607) Sarajevo 2017}) 5... Bxc3+ {[%emt 0:11:35]} 6. bxc3 {[%emt 0:00:02] C22: Centre Game.} Nc6 {[%emt 0:01:06]} 7. f4 {[%emt 0:08:44]} Qe7 {[%emt 0:00:50]} 8. Be2 {[%emt 0:02:05] The position is equal.} d6 {[%emt 0:04:27]} 9. Ba3 $1 {[%emt 0:00:19]} Qf6 {[%emt 0:01:55]} 10. Qe3 {[%emt 0:04:31]} Nh6 {[%emt 0:01:39]} 11. O-O-O {[%emt 0:04:47]} O-O {[%emt 0:01:30]} 12. Bb2 {[%emt 0:12:00]} Qe7 {[%emt 0:06:21][%cal Oc8f5]} 13. Bd3 {[%emt 0:16:36]} f5 {[%emt 0:12:14]} (13... d5 $11) 14. Re1 $1 $14 {[%emt 0:00:04]} fxe4 {[%emt 0:07:50]} (14... Qf7 $14) 15. Bxe4 $16 {[%emt 0:00:04]} Qf7 {[%emt 0:04:14] Prevents Bd5.} 16. Nf3 {[%emt 0:02:10] aiming for Ng5.} Qxa2 {[%emt 0:01:17]} (16... Qxf4 $2 17. Bd5+ Be6 18. Qxf4 Rxf4 19. Rxe6 $18) (16... Ng4 $16 17. Ng5 Nxe3 18. Nxf7 {[#]} Bf5 $1 19. Rxe3 Bxe4 20. Rxe4 d5) 17. Qd3 $18 {[%emt 0:08:15]} Kh8 $2 {[%emt 0:02:37]} (17... Qa5 {might work better.}) 18. c4 {[%emt 0:05:45]} ({Stronger than} 18. Bxc6 bxc6 19. c4 Ng8 $11) 18... Qa5 {[%emt 0:01:11]} 19. Bxc6 {[%emt 0:06:57] Threatens to win with Re7.} bxc6 {[%emt 0:00:02]} 20. Re7 {[%emt 0:00:03]} Nf5 {[%emt 0:04:20] [#]} 21. Ng5 $1 {[%emt 0:00:13][%mdl 512]} Rb8 {[%emt 0:09:01] [#]} 22. Bxg7+ $1 {[%emt 0:00:49][%mdl 512]} Kg8 {[%emt 0:00:25]} 23. Bc3 {[%emt 0:00:23]} (23. Bd4 $142 Qa3+ 24. Qxa3 Nxe7 25. Re1) 23... Qa3+ {[%emt 0:03:03]} 24. Kd2 {[%emt 0:00:02][%cal Oe7g7] Threatening mate with Rg7+!} Rf6 {[%emt 0:06:39]} 25. Re8+ {[%emt 0:12:41] Weighted Error Value: White=0.33/Black=0.97} 1-0

[Event "67th Mexican-ch Open 2022"]
[Site "Chihuahua"]
[Date "2022.04.16"]
[Round "7.12"]
[White "Silva Hernandez, Jose Luis"]
[Black "Garcia Guerrero, Isaac Antonio"]
[Result "0-1"]
[ECO "D38"]
[WhiteElo "2006"]
[BlackElo "2338"]
[Annotator "TA"]
[PlyCount "42"]
[EventDate "2022.04.12"]
[EventType "swiss"]
[EventCountry "MEX"]
[SourceTitle "playchess.com"]
[Source "ChessBase"]
[SourceQuality "1"]
[TimeControl "5400+30"]

{[%evp 17,42,8,3,0,0,-13,-13,-13,-12,-17,-8,-22,0,0,0,-70,-72,-110,-97,-95,-95,-116,-102,-122,-113,-463,-438]} 1. d4 {[%emt 0:01:15]} d5 {[%emt 0:00:04]} 2. c4 {[%emt 0:00:10]} e6 {[%emt 0:00:09]} 3. Nc3 {[%emt 0:00:50]} Bb4 {[%emt 0:00:07]} 4. Nf3 {[%emt 0:02:52]} Nf6 {[%emt 0:00:07]} 5. cxd5 {[%emt 0:03:47]} exd5 {[%emt 0:00:18]} 6. Bg5 {[%emt 0:00:34]} h6 {[%emt 0:00:10]} 7. Qa4+ {[%emt 0:01:46]} Nc6 {[%emt 0:00:48]} 8. Bxf6 {[%emt 0:03:46]} Qxf6 {[%emt 0:00:16]} 9. e3 {[%emt 0:00:04]} O-O {[%emt 0:01:58]} 10. Bb5 {[%emt 0:02:14] D38: Queen's Gambit Declined: Ragozin Defence (4 Nf3 Bb4).} Bg4 {[%emt 0:10:51]} 11. Bxc6 {[%emt 0:10:57]} Bxc3+ {[%emt 0:00:44]} 12. bxc3 {[%emt 0:03:47] The position is equal.} Bxf3 {[%emt 0:00:18]} ({Don't take} 12... bxc6 13. Ne5 Bf5 14. Qxc6 $14) ({Resist} 12... Qxc6 13. Qxc6 bxc6 14. Ne5 $14) 13. gxf3 {[%emt 0:00:23]} bxc6 {[%emt 0:02:06]} 14. Ke2 {[%emt 0:00:38] [#]} Qf5 $146 {[%emt 0:04:15] Strongly threatening ...Rab8.} (14... c5 $5) ({Predecessor:} 14... Rfb8 15. Rab1 Qf5 16. Qd1 Rb6 17. Qd3 Qh5 18. Rb3 c5 19. dxc5 Rf6 20. Rf1 Rxf3 21. Ke1 Re8 22. Rb4 Qxh2 23. Rg4 Qh3 {0-1 (23) Hulak,K (2532)-Sulava,N (2521) Sibenik 2009}) 15. Rhb1 {[%emt 0:14:33]} Rae8 {[%emt 0:09:54]} 16. Qd1 {[%emt 0:11:39]} ({White should try} 16. Rb2 $11) 16... Re6 {[%emt 0:20:19][%cal Be8e6,Be6f6,Bf6g6,Bg6g2][%mdl 32] &Nero is more active.} 17. Rb7 {[%emt 0:07:47][%csl LRa7,LRc7] [#]} Rf6 $1 {[%emt 0:07:27]} 18. Kd2 {[%emt 0:00:30]} Qh3 {[%emt 0:39:39]} 19. f4 {[%emt 0:08:20] [#]} Rg6 $1 {[%emt 0:00:00]} 20. Rab1 {[%emt 0:06:10]} ({Don't go for} 20. Rxa7 $2 Rg2 21. Qe2 Rb8 $19) 20... Rg2 21. Qe1 {[%emt 0:18:58][%mdl 8192]} (21. Qe2 $17 {nothing else works.}) 21... Qf3 {[%emt 0:01:30] Weighted Error Value: White=0.72/Black=0.02 (flawless)} 0-1

[Event "67th Mexican-ch Open 2022"]
[Site "Chihuahua"]
[Date "2022.04.16"]
[Round "7.13"]
[White "Benitez Lozano, Javier"]
[Black "Avila Bautista, Roberto Al"]
[Result "1/2-1/2"]
[ECO "A67"]
[WhiteElo "2309"]
[BlackElo "2090"]
[Annotator "TA"]
[PlyCount "65"]
[EventDate "2022.04.12"]
[EventType "swiss"]
[EventCountry "MEX"]
[SourceTitle "playchess.com"]
[Source "ChessBase"]
[SourceQuality "1"]
[TimeControl "5400+30"]

{[%evp 22,65,27,22,29,37,26,43,44,27,60,54,154,64,58,68,66,66,162,156,162,152,148,96,103,103,103,106,96,93,102,88,77,64,91,84,240,155,154,155,128,0,0,0,95,0]} 1. d4 {[%emt 0:00:26]} Nf6 {[%emt 0:00:36]} 2. c4 {[%emt 0:00:33]} c5 {[%emt 0:00:23]} 3. d5 {[%emt 0:00:39]} e6 {[%emt 0:00:23]} 4. Nc3 {[%emt 0:00:46]} exd5 {[%emt 0:00:56]} 5. cxd5 {[%emt 0:00:40]} d6 {[%emt 0:00:28]} 6. e4 {[%emt 0:00:54]} g6 {[%emt 0:00:20]} 7. f4 {[%emt 0:01:01]} Bg7 {[%emt 0:00:31]} 8. Bb5+ {[%emt 0:03:38]} Nfd7 {[%emt 0:00:28]} 9. a4 {[%emt 0:06:22]} O-O {[%emt 0:00:39]} 10. Nf3 {[%emt 0:01:05]} Na6 {[%emt 0:01:18]} 11. O-O {[%emt 0:01:37]} Nb4 $1 {[%emt 0:02:21] 11...Nb4 scores better than 11...Nc7.} 12. Be3 {[%emt 0:04:36][%cal Bc1e3,Be3f2,Bf2h4][%mdl 32]} a6 {[%emt 0:03:53] A67: Modern Benoni: Taimanov Variation.} 13. Be2 {[%emt 0:08:10]} Re8 {[%emt 0:00:29]} 14. Bf2 {[%emt 0:03:01]} Nf6 {[%emt 0:08:58] White is slightly better.} 15. Bh4 {[%emt 0:06:55] [#] e5 is the strong threat.} Qd7 $146 {[%emt 0:25:55]} ({Predecessor:} 15... Bg4 16. h3 Bxf3 17. Bxf3 Qd7 18. Re1 Nh5 19. Bg4 Qc7 20. Bxh5 gxh5 21. Rb1 f5 22. Qxh5 {1-0 (34) Shkalov,O (2266)-Dashdorzh,D (1726) St Petersburg 2018}) 16. Nd2 {[%emt 0:16:26]} Ng4 {[%emt 0:25:39]} (16... b6 $14) 17. Bxg4 {[%emt 0:27:18]} (17. Nc4 $16) 17... Qxg4 $14 {[%emt 0:00:10]} 18. Qxg4 {[%emt 0:00:04]} Bxg4 {[%emt 0:00:18]} 19. h3 {[%emt 0:00:55]} Bc8 {[%emt 0:04:18]} ({Better is} 19... Bd4+ $14 20. Bf2 Bd7) 20. Nc4 $18 {[%emt 0:00:21]} Bf8 {[%emt 0:03:17]} 21. Bf6 {[%emt 0:06:09]} Rb8 {[%emt 0:02:35]} 22. e5 {[%emt 0:05:05] &Bianco is more active.} (22. Nb6 $142) 22... dxe5 $16 {[%emt 0:04:57]} 23. Bxe5 {[%emt 0:03:49]} ({Don't play} 23. fxe5 Bf5 $14) 23... Bf5 {[%emt 0:02:18]} 24. Bxb8 {[%emt 0:00:18]} Rxb8 {[%emt 0:02:56]} 25. Rfd1 {[%emt 0:01:02]} Rd8 {[%emt 0:01:13]} 26. g4 {[%emt 0:00:43]} Bd3 {[%emt 0:03:38]} 27. Ne5 {[%emt 0:00:50]} Bc2 {[%emt 0:03:52]} 28. Rd2 {[%emt 0:00:08]} Bd6 $2 {[%emt 0:00:40]} (28... f6 $16) 29. Na2 {[%emt 0:00:55] [#] Hoping for Nxb4.} Bb3 {[%emt 0:00:50]} 30. Nxb4 {[%emt 0:00:31]} cxb4 {[%emt 0:00:15]} 31. Rd3 {[%emt 0:00:29]} Bc2 {[%emt 0:00:48] aiming for ...Bxe5. This bishop pair is nice.} 32. Rd2 {[%emt 0:00:19]} Bb3 {[%emt 0:00:09]} 33. Rd3 {[%emt 0:01:15] Weighted Error Value: White=0.23 (precise) /Black=0.17 (very precise)} (33. g5 $16) 1/2-1/2

[Event "67th Mexican-ch Open 2022"]
[Site "Chihuahua"]
[Date "2022.04.16"]
[Round "7.15"]
[White "Flores Guerrero, Jesus Aldair"]
[Black "Maass Garza R, Alejandro"]
[Result "0-1"]
[ECO "D00"]
[WhiteElo "2251"]
[BlackElo "2265"]
[Annotator "TA"]
[PlyCount "78"]
[EventDate "2022.04.12"]
[EventType "swiss"]
[EventCountry "MEX"]
[SourceTitle "playchess.com"]
[Source "ChessBase"]
[SourceQuality "1"]
[TimeControl "5400+30"]

{[%evp 14,77,28,18,25,27,39,27,53,58,60,54,78,66,75,25,50,0,0,-31,0,-66,-27,-43,-45,-136,-135,-128,-128,-121,-131,-239,-152,-371,-357,-366,-364,-362,-352,-340,-245,-235,-232,-218,-190,-588,-232,-760,-756,-745,-706,-508,-516,-930,-920,-911,-917,-918,-913,-912,-910,-1385,-1336,-29998,-29999,-29999]} 1. f4 {[%emt 0:01:31]} d5 {[%emt 0:00:39]} 2. Nf3 {[%emt 0:00:21]} Nf6 {[%emt 0:00:17]} 3. e3 {[%emt 0:00:08]} c5 {[%emt 0:00:44]} 4. d4 {[%emt 0:03:52]} e6 {[%emt 0:02:28]} 5. c3 {[%emt 0:00:11]} Nc6 {[%emt 0:01:20]} 6. Bd3 {[%emt 0:00:16]} Bd6 {[%emt 0:05:44]} 7. O-O {[%emt 0:00:18]} cxd4 {[%emt 0:00:44]} 8. exd4 {[%emt 0:00:10]} O-O {[%emt 0:01:16] D00: 1 d4 d5: Unusual lines.} 9. Qe2 {[%emt 0:01:56]} Qb6 {[%emt 0:03:46]} 10. Kh1 {[%emt 0:02:34]} Re8 {[%emt 0:04:37] White has an edge.} 11. Ne5 {[%emt 0:03:10] [#]} Ne7 $146 {[%emt 0:06:17][%cal Bc6e7,Be7f5,Bf5h4][%mdl 32]} ({Predecessor:} 11... Nd7 12. Nd2 Nf8 13. Qf3 Ne7 14. Qf2 f6 15. Ng4 Nf5 16. h3 Ng6 17. g3 Bd7 {0-1 (70) Freitag,M (1610)-Van Dijk,G (1795) Germany 2009}) 12. Nd2 {[%emt 0:08:30]} g6 {[%emt 0:14:49]} 13. Rf3 {[%emt 0:13:06]} h5 {[%emt 0:08:45]} 14. Nf1 {[%emt 0:00:32]} (14. Rh3 $16) 14... Kg7 {[%emt 0:01:03]} 15. g3 {[%emt 0:07:40]} (15. Rh3 $14) 15... Nf5 {[%emt 0:02:45]} 16. h3 {[%emt 0:01:16]} Rh8 {[%emt 0:01:36]} 17. Kg2 {[%emt 0:01:09]} ({White should try} 17. Kg1 $11) 17... Bd7 {[%emt 0:01:02]} (17... Ne4 $5) 18. Rf2 {[%emt 0:00:12]} Bc6 {[%emt 0:01:52]} 19. g4 {[%emt 0:53:08]} (19. Ne3 $15) 19... hxg4 {[%emt 0:03:04] Really sharp! &Nero is more active.} 20. hxg4 {[%emt 0:00:00]} Nh4+ {[%emt 0:03:44]} 21. Kg1 {[%emt 0:00:00]} Ne4 {[%emt 0:01:48] Prevents Ng3.} 22. Rh2 {[%emt 0:00:00]} (22. Nc4 $17 {was worth a try.} Nxc3 23. Nxb6 Nxe2+ 24. Bxe2 axb6 25. Bd3) 22... Rh7 {[%emt 0:00:59]} 23. Nf3 $2 {[%emt 0:00:00] Now White is beyond hope.} (23. Nc4 $17 Nxc3 24. Nxb6 Nxe2+ 25. Bxe2 axb6 26. Rh1) 23... Rah8 $19 {[%emt 0:01:36][%cal Ba8h8,Bh8h3,Bh3g3][%mdl 32]} ({Avoid the trap} 23... Nxf3+ $2 24. Qxf3 Rxh2 25. Nxh2 $19) 24. Nxh4 {[%emt 0:00:00]} ({Inferior is} 24. Ne5 g5 25. Rh3 gxf4 26. Bxf4 Qc7 $17) 24... Rxh4 {[%emt 0:00:10]} 25. Be3 {[%emt 0:00:00]} Rxh2 {[%emt 0:00:31]} 26. Nxh2 {[%emt 0:00:00]} Qd8 {[%emt 0:01:11]} 27. Bxe4 {[%emt 0:00:00]} dxe4 {[%emt 0:00:23]} 28. g5 {[%emt 0:00:00]} Rh3 {[%emt 0:02:39]} 29. Rf1 $2 {[%emt 0:00:00]} (29. Re1) 29... Qh8 $2 {[%emt 0:01:28]} (29... Bb5 30. Qf2 (30. Qxb5 $2 Rxe3 31. Rf2 Qh8 $19) 30... Bxf1 31. Nxf1 Qh8) 30. d5 $2 {[%emt 0:00:00]} (30. Qf2 Bb5 31. Rc1) 30... Rg3+ {[%emt 0:00:55]} 31. Kh1 {[%emt 0:03:26]} Bxd5 {[%emt 0:00:11] This bishop pair is nice.} 32. c4 {[%emt 0:01:18]} Bc6 {[%emt 0:00:29] [#] Hoping for ...Qh3.} 33. b4 {[%emt 0:00:12]} (33. Rg1 $142 Rh3 34. b4) 33... Qh3 {[%emt 0:03:24]} 34. b5 {[%emt 0:00:05]} Rxe3 {[%emt 0:03:37]} 35. Qb2+ {[%emt 0:00:06]} Kg8 {[%emt 0:00:09] Strongly threatening ...Rf3.} 36. bxc6 {[%emt 0:00:09]} bxc6 {[%emt 0:00:05]} 37. c5 {[%emt 0:01:48] [#]} Bxf4 $1 {[%emt 0:00:49][%mdl 512]} 38. Rxf4 {[%emt 0:01:18]} (38. Qd2 Rf3) 38... Re1+ {[%emt 0:00:09]} 39. Rf1 {[%emt 0:00:04]} Rxf1# {[%emt 0:00:08] Weighted Error Value: White=1.07/Black=0.28 (precise)} 0-1